bitfinex-derivatives/quotes_ETHF0:USTF0_20251216
["timestamp","ask_amount","ask_price","bid_price","bid_amount"]
[1765904759661,1.4758,2942.3,2942.2,0.00381436]
[1765904760767,4.6836,2942.3,2942.2,0.00381436]
[1765904763062,0.474,2942.0,2941.3,3.2078]
[1765904763267,3.6818,2942.0,2941.3,4.7058]
[1765904763973,0.7482,2941.4,2941.3,4.7058]
[1765904764166,0.75212169,2941.4,2941.3,3.98403665]
[1765904764573,0.00392169,2941.4,2941.3,4.70463665]
[1765904764973,0.00392169,2941.4,2941.3,4.70063665]
[1765904766269,40.8,2942.4,2941.9,1.4889]
[1765904766466,3.2078,2942.3,2942.2,1.4889]
[1765904766661,0.00509693,2942.7,2942.2,1.4889]
[1765904766866,0.72789693,2942.7,2942.6,0.7683]
[1765904767072,1.48289693,2942.7,2941.8,5.28665642]
[1765904767372,1.48552494,2942.7,2941.8,5.28665642]
[1765904767767,0.73052494,2942.7,2942.6,0.7683]
[1765904767976,0.00772494,2942.7,2942.6,3.56775642]
[1765904768367,0.00772494,2942.7,2942.6,7.96329706]
[1765904768570,0.00772494,2942.7,2942.6,11.17109706]
[1765904768774,3.2078,2943.4,2943.3,1.4889]
[1765904769070,3.2078,2944.0,2943.3,4.6967]
[1765904769273,0.16982,2944.9,2944.2,0.7683]
[1765904769274,3.2078,2944.6,2944.2,0.7683]
[1765904769470,3.2078,2944.3,2944.2,0.7683]
[1765904769670,0.72637661,2944.3,2944.2,0.77112007]
[1765904770266,1.48137661,2944.3,2944.2,0.00282007]
[1765904770473,4.68917661,2944.3,2944.2,0.00282007]
[1765904771066,4.68917661,2944.3,2944.0,0.00509693]
[1765904771067,1.4778,2944.1,2944.0,0.00509693]
[1765904771776,0.4603,2944.0,2943.0,5.99506335]
[1765904772174,0.4603,2944.0,2943.0,5.99784688]
[1765904772374,3.6681,2944.0,2943.3,3.2078]
[1765904772872,3.6681,2944.0,2943.4,0.00509693]
[1765904773668,1.9497,2943.5,2943.4,0.00509693]
[1765904773867,3.6681,2944.0,2943.4,0.77339693]
[1765904774071,0.7228,2943.5,2943.4,1.49399693]
[1765904774280,1.9497,2943.5,2943.4,0.00509693]
[1765904775182,1.9497,2943.5,2943.0,0.77108353]
[1765904775183,0.4719,2943.5,2943.0,0.77108353]
[1765904775476,3.19814081,2943.7,2943.6,1.4889]
[1765904775677,0.7228,2944.1,2943.5,3.6422]
[1765904776076,0.7228,2944.1,2943.5,3.64729693]
[1765904776577,0.7228,2943.6,2943.5,0.00509693]
[1765904776777,1.4778,2943.6,2943.5,0.00509693]
[1765904776983,4.6856,2943.6,2943.5,0.00509693]
[1765904777884,1.4778,2943.1,2943.0,0.00278353]
[1765904779183,0.7228,2943.1,2943.0,0.00278353]
[1765904779386,0.4719,2943.5,2943.0,0.77108353]
[1765904780083,1.4778,2943.1,2943.0,0.00278353]
[1765904780478,3.2078,2943.3,2943.0,0.77108353]
[1765904780783,0.4719,2943.5,2943.2,0.7683]
[1765904780984,3.2078,2943.6,2943.2,0.7683]
[1765904781183,0.7228,2943.3,2943.2,0.7683]
[1765904781486,1.4778,2943.1,2943.0,0.00278353]
[1765904781688,0.4719,2943.5,2943.0,1.49168353]
[1765904781886,0.4719,2943.5,2943.0,1.92608353]
[1765904782386,3.2078,2943.9,2943.0,5.13388353]
[1765904783077,3.2078,2943.9,2943.0,4.69948353]
[1765904783274,3.2078,2943.9,2943.0,5.13388353]
[1765904784384,3.21137661,2944.3,2943.8,1.4889]
[1765904784980,0.00357661,2944.3,2943.8,1.4889]
[1765904785181,0.00357661,2944.3,2944.2,1.4889]
[1765904785383,0.00509693,2944.5,2944.4,1.4889]
[1765904785582,3.2078,2945.0,2944.5,0.4344]
[1765904786592,3.21581753,2945.0,2944.9,1.4889]
[1765904787491,0.00801753,2945.0,2944.9,5.88885409]
[1765904787787,3.2078,2945.8,2944.9,1.4889]
[1765904788587,3.2078,2945.8,2945.1,3.9402]
[1765904788786,0.00509693,2945.6,2945.5,1.4958]
[1765904790194,0.00509693,2945.6,2945.5,1.9675]
[1765904792490,0.00509693,2945.6,2945.5,5.1753]
[1765904793096,0.74649693,2945.6,2945.5,3.9402]
[1765904793395,0.7414,2945.5,2945.4,3.9326]
[1765904793588,0.00509693,2945.6,2945.5,0.7323]
[1765904793892,0.00509693,2945.6,2945.5,1.9525]
[1765904795198,0.77619693,2945.6,2945.5,0.7761]
[1765904795995,0.77619693,2945.6,2945.5,1.523]
[1765904796196,1.50489693,2945.6,2945.5,0.7761]
[1765904796396,2.22239693,2945.6,2945.5,0.7761]
[1765904796593,1.50489693,2945.6,2945.5,0.7761]
[1765904796794,0.77619693,2945.6,2945.5,1.988]
[1765904797402,0.00509693,2945.6,2945.5,1.988]
[1765904798598,0.00349076,2945.8,2945.7,1.523]
[1765904798797,0.4527,2947.5,2946.0,0.465]
[1765904798988,0.4527,2948.5,2947.8,0.16965]
[1765904799196,0.01175457,2949.5,2948.9,0.1177]
[1765904799391,0.01175457,2949.5,2948.0,0.40214]
[1765904799392,0.4527,2950.5,2949.5,0.7761]
[1765904799689,0.4527,2951.5,2950.4,4.7057267]
[1765904799893,0.4527,2951.5,2949.7,0.00508794]
[1765904800199,0.4527,2951.5,2949.8,0.5295758]
[1765904800200,0.4527,2950.5,2949.8,0.5295758]
[1765904800402,0.4527,2950.5,2950.3,0.00508794]
[1765904800597,0.00508794,2951.2,2950.3,0.00508794]
[1765904800905,0.4527,2953.3,2951.2,0.3809]
[1765904801102,0.4527,2953.3,2952.1,2.35286335]
[1765904801295,0.8961,2953.2,2951.8,2.35286335]
[1765904801602,0.4527,2954.0,2953.1,2.35286335]
[1765904801800,0.57333696,2953.9,2953.2,2.35286335]
[1765904801999,0.00350166,2953.9,2953.2,10.29648743]
[1765904802201,0.00350166,2953.9,2952.5,7.94065662]
[1765904802202,0.4527,2953.6,2952.5,7.94065662]
[1765904802400,0.4527,2953.6,2951.6,5.503]
[1765904802598,41.37333696,2953.5,2952.7,4.4316588]
[1765904802899,41.37333696,2953.5,2952.2,4.4316588]
[1765904803197,0.8239,2953.2,2952.7,4.4316588]
[1765904803398,0.4527,2952.8,2952.7,4.4316588]
[1765904803695,0.4527,2952.8,2950.5,0.16949]
[1765904803893,0.57333696,2952.7,2951.0,2.35286335]
[1765904804101,40.8,2952.6,2951.3,4.38305948]
[1765904804294,40.8,2952.6,2951.1,4.38305948]
[1765904804497,0.57333696,2952.5,2951.6,0.00507898]
[1765904804695,0.4527,2952.0,2951.6,0.00507898]
[1765904805004,0.57333696,2951.9,2951.6,0.00507898]
[1765904805391,0.4527,2951.2,2950.0,2.35286335]
[1765904805794,1.39333215,2951.1,2950.6,4.32211631]
[1765904806099,0.4527,2950.4,2949.5,6.67497966]
[1765904806294,0.00507898,2950.2,2949.7,0.00507898]
[1765904806597,0.0077839,2950.2,2949.8,4.32211631]
[1765904806895,0.56943215,2950.1,2949.7,0.00760781]
[1765904807300,0.56943215,2950.1,2948.9,0.16958]
[1765904807699,0.56943215,2950.1,2949.0,4.42628503]
[1765904808001,0.56943215,2950.1,2949.0,8.27140043]
[1765904808204,0.8239,2949.9,2949.3,0.00507898]
[1765904808402,0.56943215,2950.1,2949.3,0.00507898]
[1765904808706,0.8239,2950.0,2949.4,4.42628503]
[1765904808903,1.39333215,2950.0,2949.9,3.2078]
[1765904809805,0.8239,2950.0,2949.9,3.2078]
[1765904809996,40.8,2951.0,2949.9,7.525579]
[1765904810198,0.56943215,2950.9,2949.9,4.317779]
[1765904810406,0.56943215,2951.1,2950.8,3.2078]
[1765904810596,41.36943215,2951.1,2950.8,3.2078]
[1765904811002,41.372482,2951.1,2950.8,3.2078]
[1765904812308,0.572482,2951.1,2950.8,3.2078]
[1765904816202,0.00304985,2951.1,2950.8,2.63836785]
[1765904816408,0.00304985,2951.1,2950.8,3.2078]
[1765904824511,0.00304985,2951.1,2950.5,3.2078]
[1765904824713,0.00304985,2951.1,2949.3,3.20473767]
[1765904824714,1.57602,2950.2,2950.1,3.2078]
[1765904825211,48.37602,2950.2,2949.8,3.2078]
[1765904825419,42.37602,2950.2,2949.8,3.2078]
[1765904825604,6.0,2950.1,2949.8,3.19019395]
[1765904825811,0.16954,2949.8,2949.5,3.2078]
[1765904826012,0.88024992,2950.1,2949.5,3.2078]
[1765904826212,1.05208105,2950.1,2949.5,3.2078]
[1765904826408,0.16953,2950.0,2949.5,3.2078]
[1765904827217,0.88256105,2949.9,2949.5,3.2078]
[1765904827412,0.88256105,2949.9,2949.3,0.00507898]
[1765904827413,0.88256105,2949.8,2949.3,0.00507898]
[1765904827612,0.88256105,2949.7,2949.3,0.00507898]
[1765904827813,0.88256105,2949.6,2949.3,0.00507898]
[1765904828014,0.88256105,2949.8,2949.3,0.00507898]
[1765904828207,0.88256105,2949.7,2949.3,0.00507898]
[1765904828517,0.88256105,2949.6,2949.3,0.00507898]
[1765904828717,0.88256105,2949.5,2949.3,0.00507898]
[1765904828912,0.88256105,2949.4,2949.3,0.00507898]
[1765904830712,3.18496105,2949.4,2949.3,0.00507898]
[1765904831108,5.55516105,2949.4,2949.3,0.00507898]
[1765904832117,0.88256105,2949.4,2949.3,2.34957898]
[1765904832919,0.88256105,2949.4,2949.3,0.00507898]
[1765904833717,5.55516105,2949.4,2949.3,0.00507898]
[1765904835122,5.72472105,2949.4,2949.3,0.00507898]
[1765904835819,46.52472105,2949.4,2949.3,0.00507898]
[1765904837220,4.6726,2949.1,2949.0,0.00259429]
[1765904837409,4.6726,2948.6,2948.1,3.2078]
[1765904837614,0.88256105,2948.5,2948.1,3.2078]
[1765904837812,0.16959,2948.9,2948.1,3.2078]
[1765904838012,41.69039604,2948.8,2948.1,3.2078]
[1765904838216,0.89039604,2948.7,2948.2,0.00508767]
[1765904838424,0.89039604,2948.6,2948.2,0.00860937]
[1765904838632,0.00273631,2948.7,2948.2,0.00860937]
[1765904838823,0.89008131,2948.6,2948.2,0.00860937]
[1765904839022,0.00273631,2948.7,2948.6,4.5809]
[1765904840423,3.2078,2949.1,2949.0,5.9527]
[1765904840623,3.2078,2949.5,2949.0,5.9527]
[1765904840824,0.88909681,2949.4,2949.0,5.9527]
[1765904841027,0.88909681,2949.3,2949.0,5.9527]
[1765904841227,0.88925294,2949.2,2949.0,5.9527]
[1765904841528,0.00306925,2949.2,2949.0,3.7163]
[1765904841921,0.00306925,2949.2,2948.5,3.2078]
[1765904842221,0.00306925,2949.2,2949.1,4.5809]
[1765904842426,0.89225551,2949.2,2949.1,4.5809]
[1765904842818,0.00306925,2949.2,2949.1,4.5809]
[1765904843018,0.00306925,2949.2,2949.1,7.7887]
[1765904845224,0.00507898,2949.7,2949.6,5.9527]
[1765904845431,3.2078,2950.1,2950.0,4.5809]
[1765904845825,40.8,2950.4,2950.3,4.5809]
[1765904845826,3.2078,2950.4,2950.3,4.5809]
[1765904846028,4.09810905,2951.0,2950.6,4.5809]
[1765904846232,3.210803,2951.0,2950.9,4.5809]
[1765904846422,40.803003,2951.0,2950.9,4.5809]
[1765904847028,40.803003,2951.0,2950.9,2.3445]
[1765904847224,4.6726,2950.8,2950.7,0.00508767]
[1765904847526,8.77080752,2950.8,2950.7,0.00508767]
[1765904847734,14.77080752,2950.8,2950.7,0.00508767]
[1765904848533,8.77080752,2950.8,2950.7,0.00508767]
[1765904848832,2.3024,2950.8,2950.7,0.00508767]
[1765904850629,40.803003,2951.0,2950.8,1.3718]
[1765904851023,2.3024,2950.8,2950.7,0.00508767]
[1765904851219,4.6726,2950.8,2950.7,0.00508767]
[1765904851427,40.803003,2951.0,2950.7,0.00508767]
[1765904851626,40.803003,2951.0,2950.9,2.3445]
[1765904852719,0.003003,2951.0,2950.9,2.3445]
[1765904852926,2.3024,2950.8,2950.7,3.21288767]
[1765904853122,0.003003,2951.0,2950.8,1.3718]
[1765904854322,0.003003,2951.0,2950.9,2.3445]
[1765904854727,0.003003,2951.0,2950.9,4.6725]
[1765904855935,0.00508767,2951.2,2951.1,4.7392]
[1765904856839,0.00765886,2951.2,2951.1,4.7392]
[1765904857432,2.279,2951.5,2951.0,3.2078]
[1765904857636,4.5261,2951.4,2951.0,3.2078]
[1765904857831,45.3261,2951.4,2951.0,3.2078]
[1765904858429,45.32919579,2951.4,2951.0,3.2078]
[1765904860639,40.80309579,2951.4,2951.3,4.7392]
[1765904861243,40.80309579,2951.4,2951.3,2.4112]
[1765904861538,40.80309579,2951.4,2951.0,3.2078]
[1765904861739,40.80309579,2951.4,2951.3,2.4112]
[1765904861940,40.80309579,2951.4,2951.3,4.7392]
[1765904862739,4.5261,2951.1,2951.0,3.2078]
[1765904864339,4.5261,2951.1,2950.7,3.21288767]
[1765904864542,4.5261,2950.8,2950.7,3.21288767]
[1765904866436,4.5261,2950.7,2950.6,0.00332643]
[1765904866642,4.5261,2950.5,2950.4,3.2078]
[1765904866843,4.5261,2950.2,2950.1,3.2078]
[1765904867138,3.2078,2950.8,2950.1,7.947]
[1765904867441,4.5261,2950.6,2950.5,1.4781]
[1765904867854,3.2078,2951.1,2950.5,6.2173]
[1765904868041,0.00309579,2951.4,2951.3,4.7392]
[1765904868341,2.28209579,2951.4,2951.3,2.4112]
[1765904868845,21.37793254,2951.4,2950.7,5.619]
[1765904869350,19.47634579,2951.4,2950.7,5.619]
[1765904870445,16.09909579,2951.4,2950.7,5.619]
[1765904870746,0.00309579,2951.4,2951.3,4.7392]
[1765904871042,2.28209579,2951.4,2951.0,4.6859]
[1765904871438,2.279,2951.1,2951.0,4.6859]
[1765904871745,4.5261,2951.1,2951.0,3.2078]
[1765904872141,4.5261,2951.1,2950.2,2.96620708]
[1765904872142,0.7096,2950.3,2950.2,0.00508767]
[1765904872342,3.2078,2950.6,2950.2,0.00508767]
[1765904872542,3.9174,2950.6,2950.5,1.4781]
[1765904872943,4.627,2950.6,2950.5,1.4781]
[1765904874153,4.627,2950.6,2950.2,0.00508767]
[1765904874154,1.883,2950.3,2950.2,0.00508767]
[1765904874354,5.0908,2950.3,2950.2,0.00508767]
[1765904874648,45.8908,2950.3,2950.2,0.00508767]
[1765904875444,61.9938,2950.3,2950.2,0.00410309]
[1765904875655,2.45831,2950.2,2950.1,8.4e-07]
[1765904876960,18.55831,2950.2,2950.1,8.4e-07]
[1765904880455,6.0,2950.1,2948.9,3.2078]
[1765904880658,3.2078,2949.1,2949.0,3.8893]
[1765904880861,3.2078,2949.4,2949.3,4.7392]
[1765904881259,11.368,2949.9,2949.7,4.7392]
[1765904881260,3.2078,2949.8,2949.7,4.7392]
[1765904881559,44.0114023,2949.8,2949.7,4.74165967]
[1765904881759,44.0114023,2949.8,2949.7,2.41365967]
[1765904882258,0.0036023,2949.8,2949.7,4.74165967]
[1765904882965,3.2078,2950.6,2950.5,2.4112]
[1765904883259,3.2078,2950.9,2950.8,1.4781]
[1765904883464,3.2078,2951.5,2950.8,7.0971]
[1765904883651,3.2078,2951.5,2950.8,3.8893]
[1765904883854,1.4332,2951.0,2950.9,0.00508767]
[1765904884060,2.8664,2951.0,2950.9,0.00508767]
[1765904884259,43.6664,2951.0,2950.9,0.00508767]
[1765904884661,40.8,2951.0,2950.9,2.42388767]
[1765904884860,40.8,2951.0,2950.9,4.90738767]
[1765904885664,0.00508767,2951.4,2951.3,4.9023]
[1765904885866,0.00508767,2951.4,2951.3,2.4188]
[1765904886062,1.41238767,2951.4,2950.9,3.21288767]
[1765904886261,42.21238767,2951.4,2950.9,3.21288767]
[1765904887170,2.7373,2951.0,2950.9,3.21288767]
[1765904887565,0.16945,2951.3,2950.9,3.21288767]
[1765904887967,3.37725,2951.3,2950.9,0.00508767]
[1765904888270,3.2078,2951.3,2950.9,0.00508767]
[1765904888574,40.80508767,2951.4,2950.9,0.00508767]
[1765904889072,0.00508767,2951.4,2951.3,4.9023]
[1765904890069,2.5586,2951.3,2951.2,2.88453374]
[1765904890374,2.5586,2951.0,2950.9,0.00508767]
[1765904890667,43.3586,2951.0,2950.9,0.00508767]
[1765904891270,42.0793,2951.0,2950.9,0.00508767]
[1765904891671,3.21288767,2951.4,2951.3,4.9023]
[1765904891865,0.00508767,2951.4,2951.3,4.9023]
[1765904892372,1.28528767,2951.4,2950.9,0.00508767]
[1765904892566,1.28528767,2951.4,2951.0,3.2078]
[1765904894067,2.4592,2951.0,2950.9,0.00508767]
[1765904894266,43.2592,2951.0,2950.9,0.00508767]
[1765904895866,42.0296,2951.0,2950.9,0.00508767]
[1765904896677,40.8,2951.0,2950.9,0.00508767]
[1765904897077,60.27527,2951.0,2950.9,0.00508767]
[1765904897280,1.1543,2950.3,2950.2,4.6859]
[1765904897575,1.1492,2949.8,2949.7,3.21025967]
[1765904897776,19.3078,2950.4,2949.7,5.62905967]
[1765904898276,19.3078,2950.4,2949.8,0.00508767]
[1765904898477,19.4773,2950.4,2949.8,0.00508767]
[1765904899275,16.2695,2950.4,2949.8,0.00508767]
[1765904900282,1.1251,2949.9,2949.8,0.00508767]
[1765904900486,16.2695,2950.4,2949.8,0.00508767]
[1765904900685,16.2695,2950.4,2950.2,1.5351]
[1765904901177,3.2078,2950.7,2950.5,1.5351]
[1765904901382,1.0508,2950.3,2950.2,1.5351]
[1765904902084,2.1016,2950.3,2950.2,1.5351]
[1765904902381,3.2078,2950.7,2949.8,0.00508767]
[1765904902583,2.0524,2949.9,2949.8,0.00508767]
[1765904904879,2.22193,2949.9,2949.8,0.00508767]
[1765904905086,0.9478,2949.2,2949.1,3.2078]
[1765904905483,1.8956,2949.2,2949.1,3.2078]
[1765904906180,1.89823153,2949.2,2949.1,3.21126769]
[1765904906987,0.95043153,2949.2,2949.1,3.21126769]
[1765904907282,0.00263153,2949.2,2949.1,3.21126769]
[1765904908284,0.90313153,2949.2,2949.1,3.21126769]
[1765904908480,4.98733153,2949.2,2949.1,0.00346769]
[1765904908887,1.77953153,2949.2,2949.1,0.00346769]
[1765904909683,0.00263153,2949.2,2949.1,0.00346769]
[1765904910181,1.68333153,2949.2,2949.1,0.00346769]
[1765904911385,0.00263153,2949.2,2949.1,0.00346769]
[1765904911883,0.80713153,2949.2,2949.1,0.00346769]
[1765904912289,1.61163153,2949.2,2949.1,0.00346769]
[1765904913387,1.514,2949.0,2948.9,0.00139409]
[1765904913783,53.944,2949.0,2948.9,0.00139409]
[1765904914091,0.7345,2948.3,2948.2,5.4991]
[1765904914292,3.2078,2948.9,2948.2,7.84115501]
[1765904915189,1.4448,2948.3,2948.2,0.00395501]
[1765904915385,17.5228,2948.3,2948.2,0.00395501]
[1765904915590,16.8121,2948.3,2948.2,2.23685501]
[1765904915789,0.7341,2948.3,2948.2,0.00395501]
[1765904916583,1.4448,2948.3,2948.2,0.00395501]
[1765904918691,0.7341,2948.3,2948.2,2.23685501]
[1765904918891,19.2878,2948.6,2948.5,1.2864]
[1765904918892,17.361,2948.6,2948.5,1.2864]
[1765904919184,17.3146,2948.6,2948.5,1.2864]
[1765904919390,1.2346,2948.3,2948.2,0.00395501]
[1765904920194,19.2878,2948.6,2948.2,0.00395501]
[1765904920195,4.396,2948.6,2948.5,1.2864]
[1765904921395,1.1882,2948.6,2948.5,1.2864]
[1765904922402,0.548,2948.3,2948.2,2.23685501]
[1765904922701,3.2078,2948.6,2948.5,5.7057]
[1765904923403,4.2808,2948.6,2948.5,1.2864]
[1765904924200,1.073,2948.6,2948.5,1.2864]
[1765904924704,1.0272,2948.3,2948.2,0.00395501]
[1765904926296,16.5356,2948.8,2948.5,1.2864]
[1765904927202,16.5356,2948.8,2948.7,2.2329]
[1765904927599,16.5356,2948.8,2948.5,1.2864]
[1765904928503,0.434,2948.6,2948.5,1.2864]
[1765904928899,0.434,2948.6,2948.5,3.5193]
[1765904929098,16.079,2948.8,2948.7,4.4193]
[1765904929495,16.4679,2948.8,2948.7,2.2329]
[1765904929799,16.4679,2948.8,2948.5,1.2864]
[1765904930402,0.3889,2948.6,2948.5,1.2864]
[1765904930803,0.3889,2948.6,2948.5,3.5193]
[1765904931201,57.03858,2949.0,2948.5,5.7057]
[1765904931404,56.869,2949.0,2948.9,2.2329]
[1765904931604,56.869,2949.0,2948.9,4.4193]
[1765904932702,0.3219,2948.6,2948.5,4.4942]
[1765904932899,0.6438,2948.3,2948.2,0.00395501]
[1765904933300,0.3219,2948.3,2948.2,2.23685501]
[1765904934011,3.2078,2948.8,2948.5,5.7057]
[1765904934200,0.2776,2948.6,2948.5,3.5193]
[1765904934910,0.5552,2948.6,2948.5,1.2864]
[1765904935399,56.865,2949.0,2948.5,3.5193]
[1765904936715,40.8,2949.0,2948.9,4.4193]
[1765904937010,40.8,2949.0,2948.5,1.2864]
[1765904937605,0.4453,2948.6,2948.5,1.2864]
[1765904937908,16.064,2948.7,2948.6,2.2329]
[1765904938111,16.064,2948.7,2948.6,4.4193]
[1765904938307,16.2539,2948.7,2948.6,4.4193]
[1765904938506,16.2539,2948.7,2948.6,2.2329]
[1765904938705,40.8,2949.0,2948.9,4.4193]
[1765904939502,3.2078,2949.1,2949.0,5.7057]
[1765904940013,40.8,2949.1,2949.0,5.7057]
[1765904940308,40.8,2949.1,2949.0,3.5193]
[1765904940512,40.8,2949.1,2949.0,1.2864]
[1765904941504,0.1248,2948.6,2948.5,1.2864]
[1765904941707,0.16959,2948.9,2948.5,1.2864]
[1765904941909,0.2496,2948.6,2948.5,1.2864]
[1765904942909,0.2281,2948.3,2948.2,3.21175501]
[1765904943109,16.2961,2948.3,2948.2,3.21175501]
[1765904943514,16.2961,2948.3,2948.2,0.00395501]
[1765904944018,1.07716833,2948.3,2948.0,5.2905]
[1765904944210,40.8,2948.2,2948.1,1.9396]
[1765904944510,40.8,2948.2,2948.1,7.2489]
[1765904944910,40.8,2948.2,2948.1,7.25168018]
[1765904946019,40.8,2948.2,2948.1,0.00278018]
[1765904947508,56.868,2948.2,2948.1,0.00278018]
[1765904947710,40.8,2948.2,2948.1,0.00278018]
[1765904947917,40.8,2948.2,2948.1,7.25168018]
[1765904948217,16.068,2948.4,2948.1,7.25168018]
[1765904948807,40.8,2948.3,2948.2,1.9396]
[1765904949013,15.04339,2948.8,2948.2,1.9396]
[1765904949210,1.37347358,2948.7,2948.1,3.21058018]
[1765904949522,0.16963,2948.1,2947.5,1.5351]
[1765904949819,14.4558,2948.0,2947.5,1.5351]
[1765904950019,2.24200228,2947.8,2947.5,1.5351]
[1765904950217,44.0078,2947.7,2947.0,1.2864]
[1765904950415,3.37748,2947.3,2947.0,1.28951618]
[1765904950612,19.44548,2947.3,2947.0,1.28951618]
[1765904954219,0.16969,2947.2,2947.0,0.00311618]
[1765904954616,0.16971,2946.8,2945.6,4.2375044]
[1765904954814,0.16971,2946.8,2946.5,1.2494]
[1765904955027,2.07235228,2947.2,2947.0,1.2494]
[1765904955331,43.5,2947.1,2947.0,1.2494]
[1765904955823,43.5029424,2947.1,2947.0,1.253068]
[1765904956232,40.8029424,2947.1,2947.0,1.253068]
[1765904957825,40.8029424,2947.1,2947.0,3.192668]
[1765904958034,40.8029424,2947.1,2947.0,1.253068]
[1765904959825,40.8029424,2947.1,2947.0,3.192668]
[1765904960031,40.8029424,2947.1,2947.0,5.294168]
[1765904960435,0.0029424,2947.1,2947.0,5.294168]
[1765904960931,0.00508767,2947.6,2947.5,5.2905]
[1765904961126,0.00508767,2947.6,2947.5,1.2494]
[1765904961526,40.80508767,2947.6,2947.5,5.2905]
[1765904961727,40.80508767,2947.6,2947.5,8.4983]
[1765904961728,0.00508767,2947.6,2947.5,8.4983]
[1765904962032,0.00890074,2947.6,2947.5,8.4983]
[1765904962534,44.0078,2948.1,2948.0,5.2905]
[1765904962939,40.8,2948.1,2948.0,5.2905]
[1765904963140,2.669,2948.2,2948.0,1.2494]
[1765904963534,2.67229868,2948.2,2948.0,1.2494]
[1765904964237,40.8,2948.1,2948.0,1.2494]
[1765904964937,0.00329868,2948.2,2948.1,4.0411]
[1765904965136,0.00329868,2948.2,2948.1,7.2489]
[1765904968340,0.00329868,2948.2,2948.1,4.0411]
[1765904968641,0.00329868,2948.2,2948.1,1.9396]
[1765904968842,0.00329868,2948.2,2948.1,7.2489]
[1765904970036,0.00329868,2948.2,2948.0,1.2494]
[1765904971439,0.00329868,2948.2,2948.1,4.0411]
[1765904973842,0.00329868,2948.2,2948.0,4.4572]
[1765904974043,16.05529868,2948.2,2948.0,1.2494]
[1765904974344,0.16964,2948.1,2947.8,0.00508767]
[1765904974643,16.05529868,2948.2,2947.8,0.00508767]
[1765904974644,2.07235228,2947.9,2947.8,0.00508767]
[1765904974835,1.8711,2949.3,2949.0,1.1528]
[1765904975034,1.8711,2949.3,2949.2,5.0166]
[1765904975332,3.7925,2949.0,2948.9,3.2078]
[1765904975944,3.79616094,2949.0,2948.9,3.21127651]
[1765904976343,1.87476094,2949.0,2948.9,5.02007651]
[1765904978045,0.16946,2951.1,2950.5,3.6258]
[1765904978238,3.2078,2951.4,2950.5,3.6258]
[1765904978443,40.8,2950.9,2950.8,3.2078]
[1765904979040,40.80325632,2950.9,2950.8,3.2078]
[1765904979750,40.80325632,2950.9,2950.8,5.0166]
[1765904980651,40.80325632,2950.9,2950.8,6.8336]
[1765904980845,0.00325632,2950.9,2950.8,6.8336]
[1765904981053,1.87435632,2950.9,2950.8,5.0166]
[1765904981247,0.00325632,2950.9,2950.8,6.8336]
[1765904982150,44.59575632,2950.9,2950.8,3.2078]
[1765904984147,3.7925,2950.7,2950.6,0.00508767]
[1765904985745,20.03398,2950.7,2950.6,0.00508767]
[1765904986251,3.7925,2950.3,2950.2,3.2078]
[1765904986446,19.8595,2950.3,2950.2,3.2078]
[1765904990448,19.8595,2950.3,2950.2,5.0166]
[1765904990649,20.02901,2950.3,2950.2,3.2078]
[1765904992044,3.96202,2950.1,2950.0,0.00508767]
[1765904992243,1.8711,2949.4,2949.3,5.0166]
[1765904992549,42.6711,2949.4,2949.3,5.0166]
[1765904992751,42.6711,2949.4,2949.3,3.2078]
[1765904993846,40.8,2949.4,2949.3,6.8336]
[1765904994048,16.22554,2949.7,2949.3,6.8336]
[1765904994351,1.8711,2949.4,2949.3,5.0166]
[1765904994750,1.8711,2949.4,2949.3,6.8336]
[1765904994951,40.8,2949.6,2949.3,6.8336]
[1765904996758,40.8,2949.6,2949.5,4.7786]
[1765904997057,16.056,2949.7,2949.6,3.6258]
[1765904997849,17.9271,2949.7,2949.6,3.6258]
[1765904998048,17.9271,2949.7,2949.6,1.8088]
[1765904998653,17.9271,2949.7,2949.6,3.6258]
[1765904999954,16.056,2949.7,2949.6,3.6258]
[1765905000354,16.056,2949.7,2949.6,1.8088]
[1765905000556,17.9271,2949.7,2949.6,3.6258]
[1765905000747,16.056,2949.7,2949.6,3.6258]
[1765905000952,56.856,2949.7,2949.6,3.6258]
[1765905001352,3.7925,2949.4,2949.3,3.2078]
[1765905001553,3.96206,2949.4,2949.3,3.2078]
[1765905001757,3.7925,2949.2,2949.1,0.00508767]
[1765905001953,16.048,2949.2,2949.1,3.63088767]
[1765905002157,0.00508767,2949.4,2949.1,3.63088767]
[1765905002158,0.00508767,2949.4,2949.3,3.6258]
[1765905002359,3.7925,2949.2,2949.1,0.00508767]
[1765905002757,19.8465,2949.2,2949.1,0.00508767]
[1765905003165,16.054,2949.2,2949.1,3.63088767]
[1765905003362,16.054,2949.2,2949.1,1.81388767]
[1765905003363,19.8465,2949.2,2949.1,1.81388767]
[1765905003759,20.01607,2949.2,2949.1,0.00508767]
[1765905003958,23.22387,2949.2,2949.1,0.00508767]
[1765905004862,24.12772254,2949.2,2949.1,0.00508767]
[1765905005057,5.42508,2949.0,2948.9,0.00347651]
[1765905005258,4.1981,2948.5,2948.4,3.2078]
[1765905005454,20.2511,2948.5,2948.4,3.2078]
[1765905005766,61.0511,2948.5,2948.4,3.2078]
[1765905006265,4.1981,2948.2,2948.1,3.2078]
[1765905006465,4.1981,2948.2,2948.1,3.21033288]
[1765905007169,4.1981,2948.2,2948.1,0.00253288]
[1765905009266,4.36773,2948.2,2948.1,0.00253288]
[1765905009765,4.36773,2948.2,2948.1,3.288e-05]
[1765905009965,0.5623,2948.0,2947.2,3.2078]
[1765905010170,3.37748,2947.3,2947.2,2.0432]
[1765905010365,15.5578,2947.3,2947.2,4.1869]
[1765905010565,56.3578,2947.3,2947.2,4.1869]
[1765905010768,0.0206,2947.1,2947.0,1.2354]
[1765905010971,0.0206,2947.1,2947.0,1.23841076]
[1765905011157,0.0206,2947.1,2947.0,0.00301076]
[1765905011557,0.19029,2947.1,2947.0,1.076e-05]
[1765905011765,6.19029,2947.1,2947.0,1.076e-05]